bitfinex/quotes_SOLUSD_20250306
["timestamp","ask_amount","ask_price","bid_price","bid_amount"]
[1741251268392,6.0,152.13,152.0,0.28432314]
[1741251268567,6.0,152.13,152.02,18.933972]
[1741251268891,18.4065,152.12,152.02,0.28432314]
[1741251269092,18.4065,152.12,152.07,312.0]
[1741251269391,5.259,152.12,152.08,0.14216157]
[1741251269604,18.4065,152.12,152.07,312.0]
[1741251269811,99.2065,152.12,151.97,222.52]
[1741251269970,80.8,152.11,151.97,222.52]
[1741251270599,80.8,152.11,151.99,0.033]
[1741251270973,125.5072,152.1,151.99,0.033]
[1741251271280,6.0115,152.07,151.99,0.033]
[1741251271587,6.0115,152.07,151.88,42.58299647]
[1741251271588,4.6203,152.04,151.85,134.5]
[1741251271890,83.4203,152.04,151.87,42.36975412]
[1741251272093,2.6203,152.04,151.88,43.75152712]
[1741251272288,18.933972,152.03,151.87,134.5]
[1741251272593,20.933972,152.03,151.87,134.5]
[1741251272894,18.4198,152.01,151.93,312.0]
[1741251273098,25.537772,152.0,151.84,6.72]
[1741251273300,18.933972,151.98,151.82,6.74]
[1741251273501,2.4386,151.97,151.82,141.24]
[1741251273996,99.733972,151.96,151.82,6.74]
[1741251274185,80.8,151.96,151.83,18.933972]
[1741251274595,80.8,151.96,151.84,0.28432314]
[1741251274990,2.4386,151.97,151.89,0.28432314]
[1741251275198,2.4386,151.97,151.9,0.28432314]
[1741251275899,5.2635,151.99,151.9,0.14216157]
[1741251276109,5.2635,151.99,151.96,312.0]
[1741251276414,18.4222,151.99,151.86,134.5]
[1741251276572,5.2635,151.99,151.85,18.64964886]
[1741251276778,5.2635,151.99,151.88,0.28432314]
[1741251276995,5.2635,151.99,151.9,0.14216157]
[1741251277585,5.2635,151.99,151.89,0.14216157]
[1741251277800,5.2635,151.99,151.9,0.14216157]
[1741251278595,5.2635,151.99,151.89,42.65407726]
[1741251278900,5.2635,151.99,151.91,0.14216157]
[1741251279305,5.2635,151.99,151.98,312.0]
[1741251281118,6.6038,152.0,151.98,312.14216157]
[1741251281316,6.6038,152.0,151.99,0.14216157]
[1741251281521,6.6038,152.0,151.94,0.14216157]
[1741251282089,7.7287,152.01,151.94,0.14216157]
[1741251282404,7.7287,152.01,151.92,0.14216157]
[1741251282603,20.8857,152.01,151.91,222.52]
[1741251282800,20.8857,152.01,151.91,215.8]
[1741251283000,20.8857,152.01,151.86,6.5849]
[1741251283208,80.8,152.0,151.87,6.72]
[1741251283407,80.8,152.0,151.88,0.14216157]
[1741251283791,80.8,152.0,151.87,6.72]
[1741251284106,80.8,152.0,151.9,0.28432314]
[1741251284288,20.8857,152.01,151.98,312.0]
[1741251284689,20.8857,152.01,151.91,0.28432314]
[1741251284985,7.7287,152.01,151.93,6.86622314]
[1741251285186,26.302,152.08,151.95,0.28432314]
[1741251285187,5.2603,152.08,151.95,0.28432314]
[1741251285402,5.2603,152.08,151.98,0.14216157]
[1741251285612,18.4112,152.08,151.99,0.14216157]
[1741251286204,5.2603,152.08,151.99,0.14216157]
[1741251286713,5.2603,152.08,152.0,0.14216157]
[1741251286901,5.2603,152.08,151.99,215.94216157]
[1741251287304,18.4112,152.08,151.99,215.94216157]
[1741251287823,81.08432314,152.07,151.91,0.21324235]
[1741251288113,80.8,152.06,151.92,0.14216157]
[1741251288321,80.8,152.06,151.91,0.21324235]
[1741251288928,80.8,152.06,151.97,312.0]
[1741251289088,18.4112,152.08,151.97,312.0]
[1741251289089,18.4161,152.04,151.98,0.14216157]
[1741251289721,18.4161,152.04,151.92,0.14216157]
[1741251290310,44.7249,152.04,151.92,0.14216157]
[1741251291929,44.7249,152.04,151.9,134.5]
[1741251292128,6.0075,152.02,151.89,6.68]
[1741251292337,6.0075,152.02,151.93,312.0]
[1741251292711,80.8,152.01,151.93,312.0]
[1741251293525,2.4395,151.99,151.83,6.68]
[1741251293729,80.8,151.98,151.83,6.68]
[1741251293935,80.8,151.98,151.84,63.00111907]
[1741251294109,80.8,151.98,151.84,62.57463436]
[1741251294436,80.8,151.98,151.83,49.08054616]
[1741251294741,80.8,151.98,151.84,0.14216157]
[1741251294916,80.8,151.98,151.86,0.14216157]
[1741251295234,80.8,151.98,151.86,0.28432314]
[1741251295405,2.4395,151.99,151.9,0.14216157]
[1741251296116,2.4395,151.99,151.9,0.28432314]
[1741251296529,2.4395,151.99,151.98,312.0]
[1741251296945,2.4395,151.99,151.89,0.14216157]
[1741251296946,7.0451,151.99,151.89,0.14216157]
[1741251297140,7.0451,151.99,151.88,81.3]
[1741251297330,18.559,151.99,151.88,81.3]
[1741251297521,18.559,151.99,151.89,0.14216157]
[1741251297719,7.0451,151.99,151.89,0.28432314]
[1741251297945,7.0451,151.99,151.97,312.0]
[1741251298350,7.0451,151.99,151.88,222.3839]
[1741251298654,18.559,151.99,151.89,0.14216157]
[1741251299559,18.559,151.99,151.89,6.72566157]
[1741251300041,18.559,151.99,151.89,0.14216157]
[1741251300963,7.0451,151.99,151.89,50.65051701]
[1741251301260,7.0451,151.99,151.91,0.28432314]
[1741251301458,7.0451,151.99,151.97,0.14216157]
[1741251302059,7.0451,151.99,151.92,0.14216157]
[1741251303374,16.9141,151.99,151.88,13.2238]
[1741251303591,7.0451,151.99,151.9,48.98374616]
[1741251303754,7.0451,151.99,151.91,0.28432314]
[1741251303953,6.0075,152.02,151.95,0.28432314]
[1741251304257,0.03,152.04,151.97,0.28432314]
[1741251304473,0.03,152.04,151.97,88.24432314]
[1741251304779,3.9764,152.04,151.97,88.24432314]
[1741251304952,3.9764,152.04,152.03,312.14216157]
[1741251305289,3.9764,152.04,152.03,312.0]
[1741251305774,13.8422,152.04,151.98,0.14216157]
[1741251305971,94.6422,152.04,151.98,0.14216157]
[1741251306556,80.8,152.03,151.97,6.66]
[1741251306871,80.8,152.03,151.93,0.14216157]
[1741251307079,80.8,152.02,151.93,0.14216157]
[1741251307462,13.8422,152.04,151.91,136.47014616]
[1741251307463,80.8,152.01,151.94,18.77827475]
[1741251307651,80.8,152.01,151.95,0.28432314]
[1741251307852,9.8958,152.04,151.95,81.58432314]
[1741251308171,13.8129,152.03,151.95,81.44216157]
[1741251308676,94.6129,152.03,151.99,312.0]
[1741251309085,84.7465,152.03,152.0,0.14216157]
[1741251309379,94.6129,152.03,151.94,0.14216157]
[1741251309884,114.3458,152.03,151.94,0.14216157]
[1741251310059,114.3458,152.03,151.92,0.14216157]
[1741251310255,80.8,152.02,151.91,6.64]
[1741251310457,2.4967,152.01,151.91,6.64]
[1741251310867,2.4967,152.01,151.92,0.28432314]
[1741251311062,2.4967,152.01,151.92,1.66595329]
[1741251311272,2.4967,152.01,151.94,0.28432314]
[1741251311554,3.9763,152.04,151.94,1.6656829]
[1741251311753,3.9763,152.04,151.94,0.28432314]
[1741251312068,3.9763,152.04,151.93,0.14216157]
[1741251312276,13.8421,152.04,151.99,0.14216157]
[1741251312579,0.03,152.01,151.99,0.14216157]
[1741251312767,0.03,152.01,151.93,0.14216157]
[1741251313275,0.03,152.01,151.92,81.3]
[1741251313472,0.03,152.01,151.92,87.8823]
[1741251313686,0.03,152.01,151.93,0.14216157]
[1741251313986,0.03,152.01,151.93,6.72376157]
[1741251314312,0.03,152.01,151.95,0.14216157]
[1741251315361,0.03,152.01,151.94,0.56864628]
[1741251315569,0.03,152.01,151.96,0.56864628]
[1741251315777,0.03,152.01,152.0,312.14216157]
[1741251316371,0.03,152.01,152.0,318.72106157]
[1741251317618,0.03,152.01,152.0,325.34106157]
[1741251317897,0.03,152.01,152.0,325.48322314]
[1741251318067,2.4128,152.1,152.03,26.38881868]
[1741251318273,8.7081,152.14,152.05,0.14216157]
[1741251318494,8.7081,152.14,152.06,0.14216157]
[1741251318997,8.7081,152.14,152.07,0.14216157]
[1741251319383,2.4464,152.14,152.08,0.14216157]
[1741251319699,3.943,152.17,152.08,0.14216157]
[1741251320795,3.943,152.17,152.07,1.52228118]
[1741251320981,3.943,152.17,152.07,0.14216157]
[1741251321188,2.3765,152.18,152.17,0.14216157]
[1741251321490,113.18440562,152.31,152.17,1.66403128]
[1741251321692,113.18440562,152.31,152.17,136.16403128]
[1741251321898,113.18440562,152.31,152.17,134.78432314]
[1741251322083,113.18440562,152.31,152.17,136.16365467]
[1741251322277,32.38440562,152.31,152.2,0.14216157]
[1741251322588,13.950339,152.29,152.2,0.14216157]
[1741251322902,6.0057,152.28,152.18,0.14216157]
[1741251323402,6.0057,152.28,152.12,6.81324235]
[1741251323578,13.950339,152.29,152.15,0.28432314]
[1741251323780,13.950339,152.29,152.16,0.14216157]
[1741251324111,13.950339,152.29,152.13,134.5]
[1741251324278,0.28432314,152.26,152.12,6.6]
[1741251324476,6.0057,152.25,152.13,0.14216157]
[1741251324679,6.0057,152.25,152.15,312.0]
[1741251324888,13.7939,152.24,152.15,312.0]
[1741251325291,13.7939,152.24,152.13,0.14216157]
[1741251325593,13.7939,152.24,152.12,6.6]
[1741251325779,13.7939,152.24,152.13,0.14216157]
[1741251325980,13.7939,152.24,152.12,6.6]
[1741251326397,80.8,152.23,152.13,0.14216157]
[1741251326883,13.7939,152.24,152.15,0.28432314]
[1741251326884,3.9411,152.24,152.15,0.28432314]
[1741251328200,3.9411,152.24,152.23,312.0]
[1741251329128,3.9406,152.26,152.23,312.14216157]
[1741251329832,6.4448,152.27,152.24,0.14216157]
[1741251330125,3.9403,152.27,152.2,0.28432314]
[1741251330522,3.9403,152.27,152.2,216.08432314]
[1741251330700,13.7912,152.27,152.2,215.94216157]
[1741251330898,9.8509,152.27,152.2,215.94216157]
[1741251331427,9.8509,152.27,152.15,222.0951]
[1741251331627,80.8,152.26,152.16,1.52161345]
[1741251331834,80.8,152.26,152.17,0.14216157]
[1741251332010,80.8,152.25,152.15,81.3]
[1741251332624,80.8,152.25,152.18,312.0]
[1741251333005,13.7949,152.23,152.19,0.14216157]
[1741251333222,13.7949,152.23,152.12,120.57819554]
[1741251333416,13.7949,152.23,152.12,89.27962884]
[1741251333646,83.2051,152.22,152.12,87.9]
[1741251333834,83.2051,152.22,152.12,81.3]
[1741251334019,83.2051,152.22,152.12,82.67987888]
[1741251334216,83.2051,152.22,152.13,0.14216157]
[1741251335144,94.5967,152.21,152.12,88.0]
[1741251336018,94.5967,152.21,152.13,0.14216157]
[1741251336217,94.5967,152.21,152.17,312.0]
[1741251336416,94.5967,152.21,152.09,81.3]
[1741251336417,87.2021,152.2,152.09,81.3]
[1741251336726,6.4021,152.2,152.09,217.18020435]
[1741251336930,6.4021,152.2,152.1,0.14216157]
[1741251337132,3.9424,152.19,152.1,0.14216157]
[1741251337345,3.9424,152.19,152.1,0.28432314]
[1741251337647,3.9424,152.19,152.16,0.14216157]
[1741251338052,3.9424,152.19,152.11,0.14216157]
[1741251338551,10.3443,152.2,152.11,20.31394925]
[1741251338722,10.3443,152.2,152.11,0.14216157]
[1741251339046,10.3443,152.2,152.11,0.28432314]
[1741251339641,10.3443,152.2,152.1,1.37990725]
[1741251339642,80.8,152.19,152.1,1.37990725]
[1741251339950,80.8,152.19,152.06,81.3]
[1741251340126,83.2638,152.18,152.02,215.8]
[1741251340329,80.8,152.17,152.02,81.3]
[1741251340931,2.4638,152.14,152.04,312.0]
[1741251341161,80.8,152.13,152.04,312.0]
[1741251341869,33.526,152.12,152.04,312.0]
[1741251342938,87.49642314,152.11,152.0,0.033]
[1741251343154,2.5922,152.1,152.0,0.033]
[1741251343354,80.8,152.09,152.0,0.033]
[1741251343745,13.8084,152.08,152.0,0.033]
[1741251345062,80.8,152.07,152.0,0.033]
[1741251345564,9.0541,152.02,151.91,0.033]
[1741251345742,18.64964886,152.0,151.91,0.033]
[1741251345929,18.64964886,152.0,151.91,312.033]
[1741251346332,81.08432314,152.01,151.91,0.033]
[1741251346333,80.8,152.01,151.91,0.033]
[1741251347670,13.8157,152.0,151.91,0.033]
[1741251349362,13.8157,152.0,151.95,0.14216157]
[1741251349863,3.9473,152.0,151.92,0.56864628]
[1741251350376,3.9473,152.0,151.92,26.67314182]
[1741251350572,3.9473,152.0,151.92,28.05466998]
[1741251350776,3.9471,152.01,151.94,0.14216157]
[1741251351073,3.9471,152.01,151.94,6.72356157]
[1741251351270,3.9471,152.01,151.94,0.14216157]
[1741251351669,0.03,152.0,151.94,0.14216157]
[1741251352878,0.03,152.0,151.99,312.14216157]
[1741251353775,0.03,152.0,151.99,318.72146157]
[1741251354167,0.03,152.0,151.99,312.14216157]
[1741251355365,0.03,152.0,151.99,318.72146157]
[1741251355762,0.03,152.0,151.99,325.56362314]
[1741251357283,0.03,152.0,151.99,318.84216157]
[1741251357985,0.03,152.0,151.99,312.0]
[1741251358660,0.03,152.0,151.92,87.98]
[1741251358858,0.03,152.0,151.92,6.68]
[1741251359275,3.9773,152.0,151.92,13.2623]
[1741251359577,3.9773,152.0,151.93,0.14216157]
[1741251359780,0.03,152.0,151.94,1.52387434]
[1741251359996,0.03,152.0,151.95,0.14216157]
[1741251360368,0.03,152.0,151.94,0.14216157]
[1741251360683,0.03,152.0,151.99,26.24665711]
[1741251360879,0.03,152.0,151.99,243.85392727]
[1741251361090,0.03,152.0,151.99,261.12279068]
[1741251361466,0.03,152.0,151.99,267.70209068]
[1741251361668,0.03,152.0,151.99,579.70209068]
[1741251362369,0.03,152.0,151.99,579.41776754]
[1741251362571,0.03,152.0,151.99,586.23776754]
[1741251362781,0.03,152.0,151.99,560.133272]
[1741251362983,0.03,152.0,151.99,534.76216157]
[1741251363288,0.03,152.0,151.99,553.553972]
[1741251363590,0.03,152.0,151.99,579.65846754]
[1741251363891,0.03,152.0,151.99,445.15846754]
[1741251364064,0.0001,152.0,151.99,452.02209068]
[1741251365458,8.7806,152.12,152.01,0.14216157]
[1741251365662,12.7249,152.12,152.03,0.14216157]
[1741251366065,8.7806,152.12,152.03,6.71946157]
[1741251366394,12.7249,152.12,152.02,6.86232314]
[1741251366575,12.7249,152.12,152.01,81.3]
[1741251366576,80.8,152.11,152.01,81.3]
[1741251366962,80.8,152.11,152.02,0.14216157]
[1741251367575,80.8,152.1,151.98,6.82]
[1741251367970,80.8,152.1,151.99,0.14216157]
[1741251368203,3.945,152.09,151.99,6.72146157]
[1741251368512,8.6185,152.07,151.95,81.3]
[1741251368664,80.8,152.06,151.93,81.3]
[1741251368999,8.6185,152.04,151.91,0.033]
[1741251369188,80.8,152.03,151.91,0.033]
[1741251370006,8.7896,152.0,151.91,0.033]
[1741251370171,13.8175,151.98,151.91,0.033]
[1741251371989,13.8175,151.98,151.91,312.033]
[1741251372774,13.8175,151.98,151.92,0.14216157]
[1741251373394,13.8175,151.98,151.91,0.033]
[1741251375273,80.8,151.97,151.91,0.033]
[1741251375468,3.9484,151.96,151.91,0.033]
[1741251375998,13.8194,151.96,151.92,312.0]
[1741251376364,80.8,151.97,151.91,0.17516157]
[1741251376365,84.7482,151.97,151.91,0.033]
[1741251376698,8.7896,152.0,151.92,0.14216157]
[1741251377074,8.8196,152.0,151.92,18.933972]
[1741251377266,0.03,152.0,151.94,42.57253338]
[1741251377467,0.03,152.0,151.94,0.14216157]
[1741251377686,0.03,152.0,151.96,0.14216157]
[1741251378798,0.03,152.0,151.99,42.57253338]
[1741251379182,0.03,152.0,151.99,0.14216157]
[1741251379388,0.03,152.0,151.99,312.14216157]
[1741251382281,0.03,152.0,151.88,81.3]
[1741251382477,0.03,152.0,151.87,134.5]
[1741251382671,0.03,152.0,151.88,0.14216157]
[1741251382986,0.03,152.0,151.85,0.033]
[1741251382987,80.8,151.99,151.85,0.033]
[1741251383300,0.03,152.0,151.92,49.91901809]
[1741251383500,0.03,152.0,151.93,42.43037181]
[1741251383709,0.03,152.0,151.95,0.14216157]
[1741251384004,2.4499,151.99,151.91,0.033]
[1741251384400,13.8175,151.98,151.91,0.033]
[1741251384696,6.0685,151.97,151.91,0.033]
[1741251385202,6.0685,151.97,151.94,312.0]
[1741251385675,6.0685,151.97,151.91,0.033]
[1741251386398,13.8194,151.96,151.91,0.033]
[1741251388704,80.8,151.95,151.91,0.033]
[1741251388903,80.8,151.94,151.91,0.0001]
[1741251389421,80.8,151.93,151.91,0.0001]
[1741251389791,80.8,151.92,151.91,0.0001]
[1741251390089,0.28432314,151.95,151.91,0.0001]
[1741251390505,3.9489,151.94,151.91,0.0001]
[1741251390806,3.9489,151.94,151.84,0.033]
[1741251390807,23.514972,151.93,151.84,0.0001]
[1741251391114,18.933972,151.87,151.8,0.0001]
[1741251391777,2.581,151.88,151.8,0.0001]
[1741251392716,6.2897,151.9,151.8,0.0001]
[1741251392717,9.5814,151.9,151.8,0.0001]
[1741251393012,6.2897,151.9,151.8,0.0001]
[1741251393223,6.2897,151.9,151.8,0.14226157]
[1741251393531,6.4893,151.95,151.9,0.14216157]
[1741251393825,6.4893,151.95,151.81,26.13469478]
[1741251394004,6.4893,151.95,151.82,0.14216157]
[1741251394393,6.4893,151.95,151.85,0.14216157]
[1741251394990,6.4893,151.95,151.83,6.5862]
[1741251395195,6.4893,151.95,151.8,0.0001]
[1741251395196,80.8,151.94,151.8,0.0001]
[1741251395396,80.8,151.93,151.8,0.0001]
[1741251396023,80.8,151.93,151.8,0.14226157]
[1741251396398,80.8,151.93,151.8,0.0001]
[1741251396595,3.2912,151.92,151.8,0.0001]
[1741251396813,80.8,151.93,151.89,312.0]
[1741251397525,80.8,151.93,151.82,0.14216157]
[1741251398822,84.0911,151.93,151.81,0.14216157]
[1741251399428,84.0911,151.93,151.8,56.00573075]
[1741251399429,83.2491,151.92,151.8,0.0001]
[1741251399593,83.2491,151.92,151.81,0.14216157]
[1741251400226,83.2491,151.92,151.81,42.58039232]
[1741251400410,83.2491,151.92,151.91,312.0]
[1741251404547,86.5403,151.92,151.8,264.82553075]
[1741251404839,80.8,151.91,151.81,0.14216157]
[1741251405039,80.8,151.91,151.81,6.72896157]
[1741251405418,80.8,151.9,151.8,0.0001]
[1741251405642,2.4491,151.92,151.8,6.5875]
[1741251405643,80.8,151.89,151.8,6.5875]
[1741251405937,80.8,151.88,151.8,0.0001]
[1741251406148,6.6173,151.86,151.8,0.0001]
[1741251407525,6.6173,151.86,151.84,312.0]
[1741251407836,80.8,151.87,151.84,312.0]
[1741251408019,80.8,151.87,151.8,0.14226157]
[1741251408207,80.8,151.89,151.8,42.58049232]
[1741251408411,6.635,151.9,151.8,42.58049232]
[1741251408412,6.635,151.9,151.82,42.43823075]
[1741251408614,6.635,151.9,151.83,0.14216157]
[1741251409025,6.635,151.9,151.82,0.14216157]
[1741251409232,6.635,151.9,151.84,0.14216157]
[1741251410938,6.635,151.9,151.89,312.0]
[1741251413111,9.9266,151.9,151.8,0.0001]
[1741251413324,84.092,151.89,151.8,0.0001]
[1741251413925,80.8,151.89,151.8,0.0001]
[1741251414236,6.635,151.9,151.82,0.14216157]
[1741251415329,80.8,151.89,151.8,0.0001]
[1741251415522,80.8,151.89,151.81,0.14216157]
[1741251415939,80.8,151.89,151.81,26.26525163]
[1741251416140,80.8,151.89,151.87,312.0]
[1741251416536,80.8,151.89,151.82,0.14216157]
[1741251417437,80.8,151.89,151.83,0.14216157]
[1741251418063,80.8,151.89,151.81,26.12309006]
[1741251418064,80.8,151.89,151.82,0.14216157]
[1741251418442,2.4491,151.92,151.84,0.14216157]
[1741251418636,5.7403,151.92,151.84,26.26525163]
[1741251418866,5.7403,151.92,151.84,0.14216157]
[1741251419657,5.7403,151.92,151.91,312.0]
[1741251421153,2.4491,151.92,151.91,312.0]
[1741251421354,0.03,151.93,151.85,0.14216157]
[1741251421558,0.03,151.93,151.85,26.26525163]
[1741251422064,3.3209,151.93,151.84,81.3]
[1741251422470,11.5483,151.93,151.84,81.3]
[1741251422770,8.2574,151.93,151.85,0.14216157]
[1741251424257,8.2574,151.93,151.82,6.8]
[1741251424457,80.8,151.92,151.89,312.0]
[1741251424669,80.8,151.91,151.89,312.0]
[1741251424873,3.2916,151.9,151.89,312.0]
[1741251425451,11.5206,151.9,151.8,0.0001]
[1741251425657,80.8,151.89,151.8,0.0001]
[1741251426372,80.8,151.89,151.85,312.0]
[1741251426563,86.8112,151.88,151.85,312.0]
[1741251426866,3.2922,151.87,151.85,312.0]
[1741251427550,86.8112,151.88,151.86,0.14216157]
[1741251427751,84.0921,151.88,151.82,26.26525163]
[1741251427968,80.8,151.88,151.84,0.14216157]
[1741251428173,84.0921,151.88,151.84,0.14216157]
[1741251428849,84.0921,151.88,151.82,0.14216157]
[1741251429563,84.0921,151.88,151.84,0.033]
[1741251429750,92.3222,151.88,151.84,0.033]
[1741251430773,92.3222,151.88,151.85,312.0]
[1741251430960,92.3222,151.88,151.86,0.14216157]
[1741251431662,92.3222,151.88,151.84,0.033]
[1741251432174,92.3222,151.88,151.8,0.0001]
[1741251432365,6.2777,151.85,151.8,0.0001]
[1741251432748,81.08432314,151.84,151.8,0.0001]
[1741251432951,18.933972,151.82,151.8,0.0001]
[1741251433576,8.7522,151.79,151.75,0.0001]
[1741251433759,80.8,151.78,151.75,0.0001]
[1741251434362,81.08432314,151.77,151.74,0.0001]
[1741251434567,80.8,151.77,151.74,0.0001]
[1741251434964,3.2946,151.76,151.74,0.0001]
[1741251435475,81.08432314,151.75,151.74,0.0001]
[1741251435651,0.28432314,151.75,151.68,0.033]
[1741251435975,80.8,151.74,151.68,0.033]
[1741251436155,6.51052314,151.73,151.68,0.033]
[1741251436669,6.2262,151.73,151.68,0.033]
[1741251436870,3.2955,151.72,151.68,0.033]
[1741251437457,3.2955,151.72,151.68,312.033]
[1741251437973,11.5343,151.72,151.68,0.033]
[1741251438176,18.933972,151.71,151.68,0.033]
[1741251438384,18.933972,151.69,151.65,0.033]
[1741251438553,0.14216157,151.68,151.65,0.033]
[1741251438747,80.8,151.67,151.65,0.033]
[1741251438952,84.38112314,151.66,151.65,0.0001]
[1741251439156,3.58112314,151.66,151.65,0.0001]
[1741251439362,3.2968,151.66,151.65,0.0001]
[1741251439566,2.5756,151.71,151.65,0.0001]
[1741251439567,8.239,151.72,151.65,0.0001]
[1741251440381,3.2955,151.72,151.65,0.0001]
[1741251440955,0.14216157,151.72,151.68,312.0]
[1741251441155,0.28432314,151.72,151.65,0.0001]
[1741251441355,14.4648,151.73,151.65,0.0001]
[1741251441784,3.2951,151.74,151.67,0.14216157]
[1741251442001,6.4926,151.73,151.65,0.0001]
[1741251442281,0.28432314,151.72,151.64,0.033]
[1741251442580,18.933972,151.72,151.64,0.033]
[1741251442964,18.933972,151.7,151.64,0.033]
[1741251443584,18.933972,151.7,151.52,81.3]
[1741251443585,18.933972,151.68,151.52,32.63949006]
[1741251443752,18.933972,151.66,151.52,6.5164]
[1741251443956,18.933972,151.66,151.53,0.14216157]
[1741251444155,18.933972,151.66,151.55,312.0]
[1741251444375,0.28432314,151.64,151.55,312.0]
[1741251444580,18.933972,151.62,151.55,312.0]
[1741251444879,0.28432314,151.6,151.55,312.0]
[1741251445088,84.0983,151.59,151.55,312.0]
[1741251445791,92.3442,151.59,151.55,312.0]
[1741251445999,80.8,151.58,151.55,312.0]
[1741251446293,86.9919,151.58,151.5,0.033]
[1741251446468,80.8,151.57,151.5,0.033]
[1741251446669,80.8,151.57,151.5,26.15609006]
[1741251446879,80.8,151.57,151.51,0.14216157]
[1741251447086,80.8,151.57,151.51,26.26525163]
[1741251447667,80.8,151.57,151.5,0.033]
[1741251447668,84.099,151.57,151.5,0.033]
[1741251448067,84.099,151.57,151.5,0.17516157]
[1741251448270,3.2979,151.61,151.53,26.12309006]
[1741251448588,84.0976,151.63,151.54,0.14216157]
[1741251448894,0.28432314,151.61,151.54,0.14216157]
[1741251449095,3.2981,151.6,151.5,0.033]
[1741251449278,80.8,151.59,151.55,0.14216157]
[1741251449472,80.8,151.59,151.54,312.0]
[1741251449979,80.8,151.59,151.55,0.14216157]
[1741251451301,80.8,151.59,151.51,26.26525163]
[1741251451593,80.8,151.65,151.56,0.14216157]
[1741251451773,80.8,151.65,151.56,26.26525163]
[1741251452168,2.6458,151.68,151.58,26.26525163]
[1741251452367,80.8,151.69,151.6,0.14216157]
[1741251452589,80.8,151.69,151.61,0.14216157]
[1741251452972,80.8,151.69,151.65,0.14216157]
[1741251453381,84.0962,151.69,151.59,0.14216157]
[1741251453898,84.0962,151.69,151.59,26.26525163]
[1741251454079,84.0962,151.69,151.61,0.14216157]
[1741251454275,92.3366,151.69,151.6,0.14216157]
[1741251454473,0.28432314,151.68,151.6,0.14216157]
[1741251454678,80.8,151.67,151.56,26.12309006]
[1741251454894,80.8,151.67,151.57,0.14216157]
[1741251455092,80.8,151.67,151.55,34.78789006]
[1741251455303,80.8,151.66,151.56,26.12309006]
[1741251455493,80.8,151.66,151.59,0.14216157]
[1741251456606,84.0968,151.66,151.62,0.14216157]
[1741251457098,84.0968,151.66,151.6,0.14216157]
[1741251458203,84.0968,151.66,151.59,0.14216157]
[1741251458582,84.0968,151.66,151.58,0.033]
[1741251458894,84.0969,151.66,151.6,0.14216157]
[1741251459701,80.83,151.69,151.61,0.14216157]
[1741251459887,3.2965,151.68,151.64,0.14216157]
[1741251460492,3.2965,151.68,151.61,0.14216157]
[1741251461109,3.2965,151.68,151.6,6.73836157]
[1741251461405,3.2965,151.68,151.6,0.14216157]
[1741251461790,3.2965,151.68,151.6,51.65316206]
[1741251461992,3.2965,151.68,151.6,6.72]
[1741251462609,3.2965,151.68,151.61,0.14216157]
[1741251462905,84.1262,151.69,151.61,0.14216157]
[1741251463310,84.1262,151.69,151.67,312.0]
[1741251463311,0.03,151.69,151.67,312.0]
[1741251463511,3.3262,151.69,151.68,0.14216157]
[1741251464582,11.5666,151.69,151.61,0.14216157]
[1741251464788,81.08432314,151.68,151.58,0.033]
[1741251465004,87.1537,151.67,151.58,0.033]
[1741251465416,11.5389,151.66,151.58,0.033]
[1741251465787,28.0231,151.66,151.58,0.033]